Cogmind - Beta 15 @@@ ROGUE MODE // 2025.10.05 @ 09:57:08 Player: Zon Result: Destroyed by H-55 Commando with Gauss Rifle Performance ------------- Evolutions (2) 1000 Regions Visited (3) 600 Robots Destroyed (38) 190 Value Destroyed (1164) 1164 Prototype IDs (0) 0 Alien Tech Used (0) 0 Bonus (0) 0 TOTAL SCORE: 2954 Bonus ------- None Cogmind --------- Core Integrity 0/550 Matter 300/300 Energy 38/100 System Corruption 3% Temperature Cool (0) Movement Core (50) Location -8/Materials Parts ------- > --- POWER (2) -------- (None) > --- PROPULSION (2) --- (None) > --- UTILITY (4) ------ (None) > --- WEAPON (3) ------- Mining Laser > --- INVENTORY (5) ---- (None) Peak State ------------ > --- POWER ------------ Light Deuterium Engine Light Nuclear Core > --- PROPULSION ------- Aluminum Leg Aluminum Leg > --- UTILITY ---------- Improved Cooling System Small Storage Unit Advanced Weight Redist. System Core Shielding > --- WEAPON ----------- Particle Gun Ion Cannon > --- INVENTORY -------- Improved Ion Engine Light Treads Aluminum Leg Medium Battery Mining Laser [Rating: 22] Favorites ----------- Power Ion Engine Engine Ion Engine Power Core Light Nuclear Core Propulsion Aluminum Leg Treads Light Treads Leg Aluminum Leg Utility Small Storage Unit Device Seismic Detector Storage Small Storage Unit Processor Visual Processing Unit Hackware Hacking Suite Protection Core Shielding Weapon Small Laser Energy Gun Small Laser Energy Cannon Particle Cannon Ballistic Gun Heavy Assault Rifle Ballistic Cannon Improved Light Cannon Special Weapon Mining Laser Build | -11 -10 -9 -8 ------- Run | Yrd Mat Mat Mat Slots Evolved 4 | . . 2 2 Power 1 | . . . 1 Propulsion . | . . . . Utility 2 | . . 1 1 Weapon 1 | . . 1 . Parts Attached 53 | 7 9 23 14 Power 9 | 1 2 4 2 Engine 8 | 1 2 4 1 Core 1 | . . . 1 Reactor . | . . . . Propulsion 9 | 2 2 2 3 Treads 3 | . 2 . 1 Leg 6 | 2 . 2 2 Wheel . | . . . . Hover . | . . . . Flight . | . . . . Utility 14 | 2 1 6 5 Device 7 | 1 . 3 3 Storage 2 | 1 . 1 . Processor 2 | . 1 1 . Hackware 1 | . . . 1 Protection 2 | . . 1 1 Artifact . | . . . . Weapon 21 | 2 4 11 4 Energy Gun 9 | 1 4 4 . Energy Cannon 2 | . . 1 1 Ballistic Gun 6 | 1 . 4 1 Ballistic Cannon 3 | . . 1 2 Launcher . | . . . . Special Weapon 1 | . . 1 . Impact Weapon . | . . . . Slashing Weapon . | . . . . Piercing Weapon . | . . . . Special Melee Weapon . | . . . . Unidentified Prototypes . | . . . . Parts Lost 29 | . 5 8 16 Power 5 | . 1 1 3 Propulsion 7 | . 2 1 4 Utility 7 | . . 2 5 Weapon 10 | . 2 4 4 Highest Loss Streak 15 | . 5 4 15 To Critical Strikes . | . . . . Average Backups 6 | 2 5 7 6 Power 1 | . . 1 1 Propulsion 2 | 1 1 3 2 Utility 1 | . 2 1 1 Weapon 1 | . 1 1 1 Tool/Special . | . . . . Unused Backups 4 | . 1 1 2 Power . | . . . . Propulsion 1 | . . 1 . Utility 1 | . . . 1 Weapon 2 | . 1 . 1 Tool/Special . | . . . . Average Slot Usage (%) 85 | . 90 87 75 Engine 9 | . 14 10 5 Treads 3 | . 7 3 . Leg 12 | . 11 11 15 Device 13 | . 14 12 15 Storage 9 | . 8 10 8 Processor 1 | . 5 1 . Protection 5 | . . 5 8 Energy Gun 17 | . 21 19 8 Energy Cannon 2 | . . 3 3 Ballistic Gun 5 | . 6 3 6 Special Weapon 1 | . . 2 . Peak Build Rating 22 | 7 7 13 22 Average Rating 10 | 4 6 10 15 On Entrance 6 | . 7 7 13 Naked Turns . | . . . . Heaviest Build 29 | 14 15 25 29 Greatest Support 29 | 20 20 20 29 Greatest Overweight (x) 6 | 1 1 6 2 Average Overweight (x) . | . . . . Largest Inventory Capacity 8 | 8 8 8 8 Average Capacity 7 | 7 6 7 7 Most Carried 8 | 6 8 8 8 Average Carried 6 | 3 5 7 6 Final Capacity 8 | 8 5 8 5 Final Carried 8 | 4 5 8 . Class Distribution -------------------- 46% | Mutant 26% | Scavenger-Tank 15% | Gunner 6% | Tank 5% | Scavenger-Mutant Dominant Class ---------------- Mutant | -10/Materials Scavenger-Tank | -9/Materials Mutant | -8/Materials Resources | -11 -10 -9 -8 ----------- Run | Yrd Mat Mat Mat Matter Collected 1048 | 291 96 355 306 Remotely . | . . . . Salvage Created 1403 | 108 290 518 487 Parts 80 | 5 16 31 28 Haulers Intercepted . | . . . . Recyclers Shooed . | . . . . Parts Field Recycled . | . . . . Retrieved Matter . | . . . . Parts Self-Destructed . | . . . . Prevented . | . . . . Kills | -11 -10 -9 -8 ------- Run | Yrd Mat Mat Mat Combat Hostiles Destroyed 26 | . 8 11 7 Guns 15 | . 6 6 3 Cannons 8 | . . 5 3 AOE 3 | . 2 . 1 Classes Destroyed 11 | 2 4 3 2 Worker 1 | . 1 . . Builder 2 | . . . 2 Tunneler 2 | 1 . 1 . Recycler 3 | 1 1 . 1 Operator 1 | . . . 1 Watcher 3 | . 1 . 2 Swarmer 3 | . 3 . . Grunt 16 | . 5 5 6 Brawler 1 | . . 1 . Duelist 1 | . . 1 . Sentry 5 | . . 4 1 Best Kill Streak 5 | 2 5 4 3 Combat Bots Only 4 | . 4 4 2 Max Kills in Single Turn 3 | 1 3 1 2 Gunslinging . | . . . . Exploded 2 | . 2 . 1 Melee . | . . . . Uniques/NPCs Destroyed . | . . . . Combat | -11 -10 -9 -8 -------- Run | Yrd Mat Mat Mat Hostile Shots Fired 340 | . 101 93 146 Missed 104 | . 28 29 47 Hits 236 | . 73 64 99 Melee 20 | . . 20 . Projectile 216 | . 73 44 99 Critical Strikes 10 | . . 6 4 Damage Taken 4044 | . 958 1163 1923 Core 1170 | . 227 381 562 Absorbed by Shields . | . . . . Redirected to Shielding 39 | . . 5 34 Core Remaining (%) 37 | 100 9 4 . Volleys Fired 159 | 7 44 65 43 Largest 3 | 2 2 3 3 Hottest 196 | 60 80 196 148 Shots Fired 290 | 14 78 113 85 Gun 222 | 14 78 72 58 Cannon 39 | . . 13 26 Launcher . | . . . . Special 29 | . . 28 1 Kinetic 78 | 7 18 14 39 Thermal 209 | 7 60 96 46 Explosive . | . . . . Electromagnetic 3 | . . 3 . Robot Hit Streak 12 | 3 7 11 12 Robot Miss Streak 5 | 2 4 2 5 Penetration Max . | . . . . Secondary Targets 1 | . . 1 . Max Gunslinging Chain 1 | . . 1 . Shots Hit Robots 146 | 8 38 56 44 Core Hits 62 | 3 16 19 24 Critical Kills . | . . . . Critical Parts Destroyed . | . . . . Critical Strikes 6 | . . 3 3 Burn 5 | . . 2 3 Corrupt 1 | . . 1 . Melee Attacks . | . . . . Impact . | . . . . Slashing . | . . . . Piercing . | . . . . Sneak Attacks . | . . . . Combat Hostiles . | . . . . Follow-up Attacks . | . . . . Damage Inflicted 2974 | 102 1048 852 972 Guns 1829 | 102 488 625 614 Cannons 503 | . . 203 300 Explosions 618 | . 560 . 58 Melee . | . . . . Ramming . | . . . . Kinetic 798 | 68 117 146 467 Thermal 2077 | 34 931 665 447 Explosive . | . . . . Electromagnetic 99 | . . 41 58 Impact . | . . . . Slashing . | . . . . Piercing . | . . . . Highest Corruption 4 | . 4 . 3 Average Corruption 2 | . 3 . 1 Corruption Purged . | . . . . Corruption Blocked . | . . . . Effects 8 | . 8 . . Message Errors 3 | . 3 . . Matter Fused 1 | . 1 . . Heat Flow Errors 2 | . 2 . . Data Loss (minor) 2 | . 2 . . Overload Shots . | . . . . Overflow Damage 171 | . 171 . . Projectiles . | . . . . Explosions 171 | . 171 . . Melee . | . . . . Knockbacks 3 | . . . 3 Impact . | . . . . Kinetic 3 | . . . 3 Secondary . | . . . . Self-Inflicted Damage 169 | . 128 . 41 Shots 4 | . 2 . 2 Rammed . | . . . . Targets Rammed . | . . . . Kicked . | . . . . Crushed . | . . . . Highest Temperature 459 | . 317 216 459 Average Temperature 111 | . 126 78 132 Received Heat Transfer 1134 | . 369 279 486 Effects 6 | . 4 . 2 Shutdowns 1 | . . . 1 Interference 3 | . 3 . . Matter Decay 1 | . 1 . . Short Circuit 1 | . . . 1 Siege Activations . | . . . . Martial Activations . | . . . . Shielding Activations . | . . . . Robots Disrupted . | . . . . Combat Hostiles . | . . . . Robots Corrupted . | . . . . Combat Hostiles . | . . . . Parts Fried . | . . . . Impact Corruptions . | . . . . Robots Melted . | . . . . Combat Hostiles . | . . . . Parts Melted 2 | . . 2 . Heat Transferred 4119 | 75 1200 1635 1209 Parts Sabotaged . | . . . . Parts Stolen . | . . . . Parts Stripped . | . . . . Power Chain Reactions 1 | . . . 1 Alert | -11 -10 -9 -8 ------- Run | Yrd Mat Mat Mat Maximum Alert Level . | . . . . Low Security (%) 100 | 100 100 100 100 Level 1 . | . . . . Level 2 . | . . . . Level 3 . | . . . . Level 4 . | . . . . Level 5 . | . . . . High Security . | . . . . Max Security . | . . . . Peak Influence 175 | 5 175 100 127 Initial 59 | . . 59 31 Average 41 | . 87 23 44 Influence Increases 998 | 10 373 328 287 Destroy 0b10 Robot/C 520 | . 160 220 140 Destroy 0b10 Robot/NC 60 | 10 15 5 30 Destroy Leader 156 | . 42 70 44 Successful Hack 40 | . 16 6 18 Disable Machine 60 | . 30 . 30 Destroy Structure 72 | . 35 27 10 Lose Combat Pursuer 90 | . 75 . 15 Influence Decreases 998 | 10 230 395 363 Entered New Map 129 | . . 84 45 Time Decay 655 | 10 180 271 194 Lost Part 214 | . 50 40 124 Squads Dispatched 6 | . 2 1 3 Investigation 1 | . . . 1 Extermination . | . . . . Reinforcement 5 | . 2 1 2 Assault . | . . . . Garrison . | . . . . Intercept . | . . . . Searches Triggered . | . . . . Construction Impeded . | . . . . Haulers Reinforced . | . . . . Active Scanning Responses . | . . . . Cargo Convoy Interrupts . | . . . . Stealth | -11 -10 -9 -8 --------- Run | Yrd Mat Mat Mat Distress Signals 2 | . . . 2 Communications Jammed . | . . . . Distress Signals . | . . . . Times Spotted 50 | . 15 15 20 Peak Tracking Total 6 | . 6 5 5 Tactical Retreats 7 | . 4 1 2 Traps | -11 -10 -9 -8 ------- Run | Yrd Mat Mat Mat Traps Triggered 3 | . 3 . . Indirectly . | . . . . Trap Hack Attempts . | . . . . Triggered . | . . . . Disarmed . | . . . . Reprogrammed . | . . . . Reused . | . . . . Traps Extracted . | . . . . Installed . | . . . . Triggered . | . . . . Machines | -11 -10 -9 -8 ---------- Run | Yrd Mat Mat Mat Machines Disabled 4 | . 2 . 2 Max in Single Turn 2 | . 2 . 1 Machines Repaired . | . . . . Machines Dismantled . | . . . . Machines Sabotaged . | . . . . Overloaded Fab Kills . | . . . . Hacking | -11 -10 -9 -8 --------- Run | Yrd Mat Mat Mat Machines Accessed 7 | . 1 3 3 Terminals 6 | . 1 2 3 Fabricators . | . . . . Repair Stations . | . . . . Recycling Units . | . . . . Scanalyzers 1 | . . 1 . Garrison Access . | . . . . Total Hacks 21 | . 3 10 8 Successful 12 | . 1 6 5 Failed 9 | . 2 4 3 Catastrophic . | . . . . Database Lockouts . | . . . . Manual 7 | . 1 2 4 Terminals 17 | . 3 6 8 Fabricators . | . . . . Repair Stations . | . . . . Recycling Units . | . . . . Scanalyzers 4 | . . 4 . Garrison Access . | . . . . Terminal Hacks 7 | . 1 2 4 Robot Analysis 1 | . 1 . . Locate Traps 2 | . . 1 1 Investigation Status 1 | . . . 1 Recall Reinforcements 2 | . . 1 1 Zone Layout 1 | . . . 1 Fabricator Hacks . | . . . . Repair Station Hacks . | . . . . Recycling Unit Hacks . | . . . . Scanalyzer 4 | . . 4 . Insert Component 2 | . . 2 . Analyze 2 | . . 2 . Garrison Access Hacks . | . . . . Unauthorized Hacks 1 | . . . 1 Terminals 1 | . . . 1 Assimilate 1 | . . . 1 Fabricators . | . . . . Repair Stations . | . . . . Recycling Units . | . . . . Scanalyzers . | . . . . Garrison Access . | . . . . Data Cores Recovered . | . . . . Used . | . . . . Hacking Detections 6 | . 1 3 2 Full Trace Events 4 | . 1 2 1 Feedback Events . | . . . . Feedback Blocked . | . . . . Robot Schematics Acquired . | . . . . Robots Built . | . . . . Authchips . | . . . . Time . | . . . . Total Robot Build Rating . | . . . . Part Schematics Acquired 2 | . . 2 . Parts Built . | . . . . Authchips . | . . . . Time . | . . . . Total Part Build Rating . | . . . . Parts Repaired . | . . . . Time . | . . . . Parts Recycled . | . . . . Recycled Matter . | . . . . Retrieved Matter . | . . . . Retrieved Components . | . . . . Parts Scanalyzed 2 | . . 2 . Part Schematics Acquired 2 | . . 2 . Parts Damaged . | . . . . Bothacking | -11 -10 -9 -8 ------------ Run | Yrd Mat Mat Mat Used RIF Installer . | . . . . Robots Hacked . | . . . . Non-combat . | . . . . Combat . | . . . . Robot Hacks Applied . | . . . . Relay Couplers Released . | . . . . Fabnet Peak Effective % . | . . . . Robots Rewired . | . . . . Allies Hacked . | . . . . Hacks Repelled . | . . . . Allies | -11 -10 -9 -8 -------- Run | Yrd Mat Mat Mat Total Allies . | . . . . Largest Group . | . . . . Highest-Rated Group . | . . . . Highest-Rated Ally . | . . . . Total Orders . | . . . . Ally Attacks . | . . . . Total Damage . | . . . . Kills . | . . . . Allies Corrupted . | . . . . Allies Melted . | . . . . Intel | -11 -10 -9 -8 ------- Run | Yrd Mat Mat Mat Active Infowar (turns) 1074 | 16 494 380 184 Optics 206 | . 177 29 . Seismic 873 | 16 494 363 . ECM 530 | . . 346 184 Robot Analysis Total 1 | . 1 . . Derelict Logs Recovered . | . . . . Drone Launches . | . . . . Drone Recoveries . | . . . . Exploration | -11 -10 -9 -8 ------------- Run | Yrd Mat Mat Mat Turns Passed 2226 | 99 494 1112 521 Spaces Moved 1067 | 60 252 540 215 Core 69 | 15 . 44 10 Treads 302 | . 125 172 5 Legs 696 | 45 127 324 200 Wheels . | . . . . Hover . | . . . . Flight . | . . . . Fastest Speed 50 | 50 120 50 50 Average Speed 146 | 105 140 149 157 Slowest Speed 350 | 120 190 350 260 Overloaded Moves . | . . . . Propulsion Burnouts . | . . . . Robots Hopped . | . . . . Potential Cave-ins . | . . . . Cave-ins Triggered 1 | . . . 1 Exploration Rate (%) 23 | 4 38 31 20 Regions Visited 3 Branch Regions . Pre-discovered Areas . | . . . . Known Exits Taken . | . . . . Unknown Exits Taken 3 | 1 1 1 . Scrap Searched . | . . . . Spaces Dug 28 | . . 27 1 Terrain Destroyed 78 | . 44 27 7 Melee . | . . . . Projectile 32 | . . 27 5 AOE 46 | . 44 . 2 Terrain Rammed . | . . . . Walls Destroyed . | . . . . Machines Disabled . | . . . . Actions | -11 -10 -9 -8 --------- Run | Yrd Mat Mat Mat Total 1403 | 79 316 684 324 Wait 53 | . . 29 24 Move 1064 | 59 251 539 215 Hop . | . . . . Pick Up 29 | 6 6 11 6 Fast Attach 31 | 5 1 16 9 Attach 21 | 2 4 5 10 Detach 3 | . 1 1 1 Swap 13 | . 5 7 1 Drop 30 | . 4 11 15 Fire 159 | 7 44 65 43 Melee . | . . . . Ram . | . . . . Kick . | . . . . Crush . | . . . . Escape Stasis . | . . . . Rewire . | . . . . Trap . | . . . . Miscellaneous . | . . . . Route ------- -11/Scrapyard -10/Materials -9/Materials -8/Materials History --------- Turn | Location | Event 5 | -11/Scrapyard | Discovered new exit (range 16) 100 | -11/Scrapyard | Entered Materials 300 | -10/Materials | Discovered new exit (range 5) 320 | -10/Materials | Core integrity fell below 50% 348 | -10/Materials | Lost 5 parts (1p2n2w) 353 | -10/Materials | Build established: Mutant 525 | -10/Materials | Core integrity fell below 20% 594 | -10/Materials | Entered another Materials area 594 | -9/Materials | Evolved 2 slots: Utility x1, Weapon x1 926 | -9/Materials | Build established: Gunner 1017 | -9/Materials | Lost 4 parts (1n2u1w) 1039 | -9/Materials | Core integrity fell below 50% 1060 | -9/Materials | Core integrity fell below 20% 1067 | -9/Materials | Lost 3 parts (1p2w) 1445 | -9/Materials | Build established: Scavenger-Tank 1676 | -9/Materials | Discovered new exit (range 6) 1706 | -9/Materials | Entered another Materials area 1706 | -8/Materials | Evolved 2 slots: Power x1, Utility x1 2210 | -8/Materials | Core integrity fell below 50% 2225 | -8/Materials | Crushed by falling debris 2225 | -8/Materials | Core integrity fell below 20% 2227 | -8/Materials | Destroyed by H-55 Commando with Gauss Rifle Last Messages --------------- 02211_ Extracted 4 energy. 02212_ Extracted 1 energy. 02212_ Penetrated by Slug. 02212_ G-47 Trooper knocked back. 02213_ Extracted 4 energy. 02214_ Extracted 1 energy. 02214_ Assault Cannon destroyed. 02214_ Acquired 66 matter. 02214_ Acquired 40 matter. 02215_ Acquired 4 matter. 02217_ Penetrated by Slug. 02219_ R-06 Scavenger collects Med. Battery. 02220_ Slug penetrates Wall. 02224_ Penetrated by Slug. 02224_ Adv. Weight Redist. System destroyed. 02225_ The unstable cave ceiling collapses. 02225_ Crushed by falling debris. 02225_ Hacking Suite destroyed. 02225_ System corrupted by crushing effect (+2). 02227_ Penetrated by Slug. Map ----- +----------------------------------------------------+ | ?????????????????????????????????????????????????? | | ?????????????????????????????????????????????????? | | ?????????????????????????????????????????????????? | | ?????????????????????????????????????????????????? | | ###+###??????????? ??????????????????????????????? | | ^^ ??????? ????????????????????????????? | | ^^ ??????? ????????????????????????????? | | ^^ ??????? ????????????????????????????? | | ###+######??????? ????????????????????????????? | | ?# #?# ??????# #????????????????????????????? | | ?# #?# ??????# #????????????????????????????? | | ?# #?# ??????# #????????????????????????????? | | ?# #?# ??????# #????????????????????????????? | | ?# #?# ??????# #????????????????????????????? | | ?# #?# ??????# #????????????????????????????? | | ?# ########### #????????????????????????????? | | ?# # % ##???????????????????????????? | | ?# + "#???????????????????????????? | | ####### #????????????????????????????? | | + # ####"" #????????????????????????????? | | # """ # ###### #######??????????????????????? | | # """ + # # +??????????????????????? | | # """ # # # #+########??????????????????????? | | # """ # %#] #w# "" #???????????????????????? | | # ! # # # ;% rH ##??????????????????????? | | # """ # !# # # h @##?????????????????????? | | # """ # %/ # # !g %#;#?????????????????????? | | # """ # # # # % "##?????????????????????? | | # """ # ###### ##########??????????????????????? | | # # %#????? ????????????????????????????????? | | ####### ###"# ???????????????????????? | | ?????## %! ???????????????????????? | | ????# # % ???????????????????????? | | ????### = ???????????????????????? | | ??????## ##+## ????????????????????????? | | ???????# #????? ###????????????????????????? | | ???????# +?????? ###??????????????????????????? | | ???????####???????? #????????????????????????????? | | ????????????????????+????????????????????????????? | | ?????????????????????????????????????????????????? | | ?????????????????????????????????????????????????? | | ?????????????????????????????????????????????????? | | ?????????????????????????????????????????????????? | | ?????????????????????????????????????????????????? | | ?????????????????????????????????????????????????? | | ?????????????????????????????????????????????????? | | ?????????????????????????????????????????????????? | | ?????????????????????????????????????????????????? | | ?????????????????????????????????????????????????? | | ?????????????????????????????????????????????????? | +----------------------------------------------------+ Best States ------------- Heat Dissipation 58 Energy Generation 23 Energy Capacity 265 Matter Stores 300 Matter Capacity 300 Sight Range 18 Terrain Scan Density 10 ECM Strength 1 Additional Mass Support 9 Armor Coverage 150 Core Shielding 20 Evasion (%) 55 Recoil Reduction 1 Offensive Hacking 10 Item Schematics ----------------- Imp. Ion Engine | -9/Materials | Scanalyzed Med. Battery | -9/Materials | Scanalyzed Robot Schematics ------------------ None Fabricated ------------ Nothing Repaired ---------- Nothing Alien Tech Used ----------------- None Achievements -------------- None Challenges ------------ None Game ------ Seed MiniAngularSplitter Manual? 0 Play Time 00:42:25 Cumulative 30.7 hours Start 2025.10.04 @ 22:07:49 End 2025.10.05 @ 09:57:08 Sessions 3 Manual Loads 0 Difficulty Rogue Special Mode None Game No. 23 Rogue 23 Adventurer 0 Explorer 0 Win Type - Total 0 Types 0/0/0/0/0/0/0/0/0/0 Lore% 20 Gallery% 24 Achievement% 23 Wizard Run 0 Options --------- Layout 1 ASCII 0 Keyboard 0 Movement Mouse Keybinds 0 Fullscreen 2 Font 48/Smallcaps Map View 25x17 Zoom Use 13% Tactical HUD 1 Map Filters NONE Filters NONE Steam 1 RUN: 7804f2a2-9bcc-43ce-bafd-0c21a920fabc